[Event "Budapest One Week GM-A 03-2025"]
[Site "Budapest"]
[Date "2025.03.17"]
[Round "1.1"]
[White "Lu, Maximillian"]
[Black "Berczes, David"]
[Result "0-1"]
[Annotator "TA"]
[ECO "A13"]
[WhiteElo "2392"]
[BlackElo "2408"]
[PlyCount "78"]
[EventDate "2025.03.17"]
[EventType "tourn"]
[EventCountry "HUN"]
[SourceTitle "playchess.com"]
[Source "ChessBase"]
[SourceQuality "1"]
[TimeControl "5400+30"]

{[%evp 11,78,16,39,29,34,6,42,31,35,40,23,25,134,134,176,173,169,183,171,175,264,244,229,168,237,225,239,231,240,230,219,214,256,221,219,156,216,123,187,170,174,159,168,183,257,242,263,152,163,150,152,124,162,148,164,0,211,229,179,163,215,-1583,-856,-29995,-29996,-29996,-29997,-29997,-29998]} 1. c4 {[%emt 0:00:03]} e6 {[%emt 0:01:31]} 2. Nf3 {[%emt 0:00:06]} d5 {[%emt 0:01:37]} 3. g3 {[%emt 0:00:06]} Nf6 {[%emt 0:00:50]} 4. Bg2 {[%emt 0:00:04]} Be7 {[%emt 0:00:06]} 5. d4 {[%emt 0:00:45]} O-O {[%emt 0:00:06]} 6. O-O {[%emt 0:00:37]} a5 {[%emt 0:01:19]} 7. Nc3 {[%emt 0:01:12] E06: Closed Catalan: Early deviations.} c6 {[%emt 0:00:06]} 8. Nd2 {[%emt 0:04:10]} b5 {[%emt 0:06:17]} 9. cxb5 {[%emt 0:05:47] White is slightly better.} cxb5 {[%emt 0:02:38]} 10. Nxb5 {[%emt 0:00:09]} Qb6 {[%emt 0:00:21]} 11. a4 {[%emt 0:01:56][%cal Od2c4]} Ba6 {[%emt 0:00:22]} (11... Nc6 $11 {remains equal.}) 12. Nc4 $16 {[%emt 0:04:40]} dxc4 $146 {[%emt 0:16:02]} ({Predecessor:} 12... Qd8 13. Bf4 Nc6 14. Bc7 Qe8 15. Nb6 Bxb5 16. axb5 Ra7 {1-0 Wheeler,C (2398)-Bruzon Batista,L (2645) US Collegiate Blitz 2021 (2.105)}) 13. Bxa8 {[%emt 0:00:08]} Nc6 {[%emt 0:03:32]} 14. Bxc6 {[%emt 0:00:48]} Qxc6 {[%emt 0:00:07]} 15. Bd2 {[%emt 0:16:05]} Bb7 {[%emt 0:07:20]} (15... Bxb5 $142 16. axb5 Qxb5 17. Bxa5 (17. Rxa5 Qxb2 18. Bg5 Qb6 $18) 17... Qxb2) 16. f3 $1 $18 {[%emt 0:00:24]} (16. Bxa5 $2 Qh1#) 16... e5 {[%emt 0:00:21]} 17. Kh1 {[%emt 0:28:17]} Rd8 {[%emt 0:22:07]} (17... exd4 $142 18. Bxa5 (18. Nxd4 Qc5 $16) 18... Qa6) 18. Bxa5 {[%emt 0:10:35]} Rd7 {[%emt 0:00:11]} 19. Bc3 {[%emt 0:02:04]} e4 {[%emt 0:06:10]} 20. Qc1 {[%emt 0:05:32]} Qe6 {[%emt 0:10:31]} 21. Qf4 {[%emt 0:00:43]} h6 {[%emt 0:09:24]} 22. Qe5 {[%emt 0:14:53]} Qh3 {[%emt 0:03:38]} 23. d5 {[%emt 0:00:20]} Bxd5 {[%emt 0:05:07]} 24. a5 {[%emt 0:02:13]} (24. Rf2 $1 $18) 24... Bf8 {[%emt 0:00:08]} (24... Bc5 $16 25. Nd4 exf3 26. exf3 Ng4) 25. Nd4 $1 {[%emt 0:00:30]} exf3 {[%emt 0:00:45]} 26. exf3 {[%emt 0:00:15]} Bd6 {[%emt 0:02:17] [#]} 27. Qe2 {[%emt 0:00:23]} Nh5 {[%emt 0:00:35]} (27... Ng4 {is a better defense.} 28. a6 Bc5) 28. Kg1 {[%emt 0:00:52]} Bc5 {[%emt 0:00:16]} 29. Rad1 {[%emt 0:00:39]} (29. Qe8+ $18 Kh7 30. Qe2) 29... Rd6 $16 {[%emt 0:00:23]} 30. Qg2 {[%emt 0:00:15]} Qd7 {[%emt 0:00:10][%cal Oh5f4]} 31. Kh1 {[%emt 0:00:34]} Ba8 {[%emt 0:00:30][%cal Rc5d4]} 32. Qf2 {[%emt 0:00:24]} Nf6 {[%emt 0:00:57] [#]} 33. Rfe1 $2 {[%emt 0:00:54]} ({White should try} 33. Qe3 $1 $18) 33... Ng4 $2 {[%emt 0:00:44]} (33... g5 $1 $11 {and Black has nothing to worry.}) 34. Qe2 {[%emt 0:00:01] Threatens to win with Qe8+.} Kh7 {[%emt 0:00:31][%cal Rc5d4]} 35. Qxc4 {[%emt 0:01:01]} Qf5 {[%emt 0:00:29][%cal Of5f3] ( -> ...Qxf3+!)} 36. Kg2 {[%emt 0:00:32][%mdl 8192] [#]} (36. Nxf5 $2 Bxf3#) (36. Qf1 $18 Qh5 37. Re2) 36... Rxd4 $1 $19 {[%emt 0:00:30][%mdl 512]} 37. Bxd4 {[%emt 0:00:31]} (37. Qe2 Rxd1) 37... Qxf3+ {[%emt 0:00:08] Black mates.} 38. Kh3 {[%emt 0:00:02]} Qg2+ {[%emt 0:00:52]} 39. Kxg4 {[%emt 0:00:10]} Qf3+ {[%emt 0:00:05] Quite a comeback for Black.   Weighted Error Value: White=0.50/Black=0.24 (precise)   Loses game:     	---       	Black=1      Missed win:     	White=2     	---        Mistake:       	White=2     	Black=5      Inaccurate:     	White=2     	Black=2      OK:         	White=9     	Black=10     Best:        	White=3     	Black=1      Strong:       	White=2     	---        Brilliant:      	---       	Black=1} 0-1

[Event "Budapest One Week GM-A 03-2025"]
[Site "Budapest"]
[Date "2025.03.17"]
[Round "1.2"]
[White "Jake Shanty"]
[Black "Sandoval Mercado, Carlos"]
[Result "1/2-1/2"]
[Annotator "TA"]
[ECO "D45"]
[WhiteElo "2336"]
[BlackElo "2383"]
[PlyCount "240"]
[EventDate "2025.03.17"]
[EventType "tourn"]
[EventCountry "HUN"]
[SourceTitle "playchess.com"]
[Source "ChessBase"]
[SourceQuality "1"]
[TimeControl "5400+30"]

{[%evp 66,240,57,58,60,59,60,61,74,64,54,0,53,0,62,0,0,-16,50,50,50,50,50,45,74,74,74,74,74,74,74,74,74,74,74,74,74,74,74,74,74,74,74,74,74,74,74,74,74,74,74,74,74,74,74,74,74,74,81,74,81,45,45,45,45,45,45,45,45,45,45,45,45,45,45,45,45,45,45,45,45,17,17,17,17,17,17,17,17,17,17,17,17,17,17,0,17,0,17,17,17,17,17,17,17,17,17,17,17,17,17,17,17,17,17,0,17,0,17,17,17,17,17,17,17,17,17,10,10,0,17,17,17,0,0,0,0,0,0,0,0,0,0,0,0,0,0,0,0,0,0,0,0,0,0,0,0,0,0,0,0,0,0,0,0,0,0,0,0,0,0,0,0,0,0,0,29972]} 1. d4 {[%emt 0:00:05]} Nf6 {[%emt 0:00:13]} 2. c4 {[%emt 0:00:15]} e6 {[%emt 0:02:27]} 3. Nf3 {[%emt 0:00:37]} d5 {[%emt 0:00:45]} 4. Nc3 {[%emt 0:00:27]} c6 {[%emt 0:00:22]} 5. e3 {[%emt 0:03:52]} Nbd7 {[%emt 0:00:06]} 6. Qc2 {[%emt 0:08:52]} Bd6 {[%emt 0:00:53]} 7. Bd3 {[%emt 0:04:59]} O-O {[%emt 0:01:10]} 8. O-O {[%emt 0:02:49]} dxc4 {[%emt 0:04:42]} 9. Bxc4 {[%emt 0:00:11]} b5 {[%emt 0:00:07]} 10. Bd3 {[%emt 0:02:43]} Bb7 {[%emt 0:02:25]} 11. a3 {[%emt 0:20:03]} Qe7 {[%emt 0:08:20]} 12. Rd1 {[%emt 0:12:31]} g6 {[%emt 0:24:36]} 13. Bd2 {[%emt 0:09:24]} a5 {[%emt 0:05:27]} 14. Rac1 {[%emt 0:02:21]} e5 {[%emt 0:02:31]} 15. Ne4 {[%emt 0:02:46]} Nxe4 {[%emt 0:09:53]} 16. Bxe4 {[%emt 0:00:08]} Rfc8 {[%emt 0:00:39]} 17. dxe5 {[%emt 0:08:39]} Nxe5 {[%emt 0:00:56]} 18. Bc3 {[%emt 0:03:30]} Nc4 {[%emt 0:03:17]} 19. Nd2 {[%emt 0:02:51]} Nb6 {[%emt 0:08:41]} 20. Nb3 {[%emt 0:06:37]} b4 {[%emt 0:05:40]} 21. axb4 {[%emt 0:01:54]} axb4 {[%emt 0:00:04]} 22. Bd4 {[%emt 0:00:43]} c5 {[%emt 0:04:33]} 23. Bxb7 {[%emt 0:02:22]} Qxb7 {[%emt 0:00:08]} 24. Bxc5 {[%emt 0:00:55]} Bxc5 {[%emt 0:08:00]} 25. Nxc5 {[%emt 0:00:08]} Qe7 {[%emt 0:00:51]} 26. Qe4 {[%emt 0:00:54]} Qxe4 {[%emt 0:00:28]} 27. Nxe4 {[%emt 0:00:06]} Rxc1 {[%emt 0:00:23]} 28. Rxc1 {[%emt 0:00:06]} Ra2 {[%emt 0:00:35]} 29. b3 {[%emt 0:01:06]} Rb2 {[%emt 0:00:05]} 30. Nc5 {[%emt 0:00:10]} Nd5 {[%emt 0:02:28]} 31. g4 {[%emt 0:02:03]} Nc3 {[%emt 0:00:23]} 32. Kg2 {[%emt 0:00:41]} Kg7 {[%emt 0:01:53]} 33. Kf3 {[%emt 0:00:47]} Nb1 {[%emt 0:02:13]} 34. Kg3 {[%emt 0:01:17]} Nd2 {[%emt 0:00:25]} 35. Rd1 {[%emt 0:00:18]} Rc2 {[%emt 0:01:36]} 36. Nd3 {[%emt 0:00:34]} Ne4+ {[%emt 0:00:05]} 37. Kf3 {[%emt 0:00:05]} Nd2+ {[%emt 0:00:12]} 38. Kg3 {[%emt 0:00:50]} Ne4+ {[%emt 0:00:03]} 39. Kf3 {[%emt 0:00:06]} Nd2+ {[%emt 0:00:08]} 40. Kf4 {[%emt 0:00:43]} (40. Kg2 $14) 40... Nxb3 $11 {[%emt 0:00:39]} 41. Rb1 {[%emt 0:00:05]} Nc5 {[%emt 0:00:49]} (41... Rc3 $11 42. Ne1 Rc4+ 43. Ke5 Na5 (43... Nd2 44. Rb2 $11)) 42. Nxc5 $14 {[%emt 0:00:08]} (42. Nxb4 Rxf2+ 43. Ke5 Nd7+ (43... Rxh2 $2 44. Rg1 $19) 44. Kd6 Rd2+ 45. Kc7 Nf6 $19) 42... Rxc5 {[%emt 0:00:02]} 43. Rxb4 {[%emt 0:00:08]} h5 {[%emt 0:00:04]} 44. h3 {[%emt 0:00:08]} hxg4 {[%emt 0:00:43]} 45. hxg4 {[%emt 0:00:02]} g5+ {[%emt 0:00:10]} 46. Kg3 {[%emt 0:00:03]} Kg6 {[%emt 0:00:14]} 47. Rb6+ {[%emt 0:00:05]} f6 {[%emt 0:00:08]} 48. Rb7 {[%emt 0:00:06]} Rc3 {[%emt 0:00:11]} 49. Kf3 {[%emt 0:00:07]} Ra3 {[%emt 0:00:07]} 50. Rb2 {[%emt 0:00:06]} Rc3 {[%emt 0:00:14]} 51. Rd2 {[%emt 0:00:16]} Rb3 {[%emt 0:00:18]} 52. Ra2 {[%emt 0:00:35]} Rc3 {[%emt 0:00:05]} 53. Ra4 {[%emt 0:00:55]} Rc2 {[%emt 0:00:47]} 54. Kg3 {[%emt 0:00:17]} Rc3 {[%emt 0:00:05]} 55. Re4 {[%emt 0:00:07]} Ra3 {[%emt 0:00:05]} 56. Re7 {[%emt 0:00:06]} Rb3 {[%emt 0:00:16]} 57. Rd7 {[%emt 0:01:55]} Ra3 {[%emt 0:00:11]} 58. Kf3 {[%emt 0:00:16]} Ra2 {[%emt 0:00:23]} 59. Rd3 {[%emt 0:00:23]} Ra4 {[%emt 0:00:06]} 60. Kg3 {[%emt 0:00:11]} Ra1 {[%emt 0:00:14]} 61. Rd5 {[%emt 0:00:28]} Ra3 {[%emt 0:00:05]} 62. Kg2 {[%emt 0:00:28]} Rb3 {[%emt 0:00:05]} 63. e4 {[%emt 0:01:01]} Kf7 {[%emt 0:01:35]} 64. Rf5 {[%emt 0:00:26]} Kg6 {[%emt 0:00:05]} 65. f3 {[%emt 0:00:42]} Ra3 {[%emt 0:00:05]} 66. Kg3 {[%emt 0:00:08]} Rb3 {[%emt 0:00:06]} 67. Rc5 {[%emt 0:00:05]} Kf7 {[%emt 0:00:17]} 68. Rc6 {[%emt 0:00:43]} Ra3 {[%emt 0:00:41]} 69. Rc7+ {[%emt 0:00:10]} Ke6 {[%emt 0:00:13]} 70. Rc5 {[%emt 0:00:42]} Kf7 {[%emt 0:00:29]} 71. Rb5 {[%emt 0:00:20]} Rc3 {[%emt 0:00:26]} 72. Kf2 {[%emt 0:00:19]} Ra3 {[%emt 0:00:07]} 73. e5 {[%emt 0:00:36]} fxe5 {[%emt 0:00:14]} 74. Rxe5 {[%emt 0:00:02]} Kf6 {[%emt 0:00:08]} 75. Rb5 {[%emt 0:00:14]} Rc3 {[%emt 0:00:07]} 76. Rb6+ {[%emt 0:00:10]} Kf7 {[%emt 0:00:06]} 77. Ke2 {[%emt 0:00:13]} Ra3 {[%emt 0:00:07]} 78. Rd6 {[%emt 0:00:07]} Rb3 {[%emt 0:00:16]} 79. Rd3 {[%emt 0:00:24]} Rb1 {[%emt 0:01:07]} 80. Rd6 {[%emt 0:00:54]} Rb3 {[%emt 0:00:06]} 81. Rd3 {[%emt 0:00:05]} Rb1 {[%emt 0:00:06]} 82. Ke3 {[%emt 0:00:05]} Re1+ {[%emt 0:00:34]} 83. Kd2 {[%emt 0:00:32]} Ra1 {[%emt 0:04:55]} 84. Rd5 {[%emt 0:02:44]} Kf6 {[%emt 0:00:03]} 85. Rd6+ {[%emt 0:00:18]} Kf7 {[%emt 0:05:09]} 86. Ke3 {[%emt 0:00:14]} Re1+ {[%emt 0:01:32]} 87. Kd4 {[%emt 0:00:07]} Re2 {[%emt 0:00:10]} 88. Ra6 {[%emt 0:00:34]} Re1 {[%emt 0:00:14]} 89. Ra3 {[%emt 0:00:26]} Kf6 {[%emt 0:00:18]} 90. Ra6+ {[%emt 0:00:14]} Kf7 {[%emt 0:00:01]} 91. Ra3 {[%emt 0:00:12]} Kf6 {[%emt 0:00:03]} 92. Ra5 {[%emt 0:00:09]} Rd1+ {[%emt 0:00:33]} 93. Ke3 {[%emt 0:00:07]} Re1+ {[%emt 0:00:06]} 94. Kd2 {[%emt 0:00:05]} Rb1 {[%emt 0:00:23]} 95. Ra6+ {[%emt 0:00:09]} Kf7 {[%emt 0:00:05]} 96. Rc6 {[%emt 0:00:04]} Rb3 {[%emt 0:00:18]} 97. Rc3 {[%emt 0:00:12]} Rb1 {[%emt 0:00:01]} 98. Kd3 {[%emt 0:00:28]} Rb4 {[%emt 0:02:29]} 99. Rc4 {[%emt 0:00:08]} Rxc4 {[%emt 0:00:43]} 100. Kxc4 {[%emt 0:00:08]} Ke6 $1 {[%emt 0:00:03]} 101. Kc3 {[%emt 0:02:52]} Ke5 {[%emt 0:00:18]} 102. Kd3 {[%emt 0:00:05]} Kd5 $1 {[%emt 0:00:10]} ({But not} 102... Kf4 $2 103. Ke2 Ke5 104. Ke3 $18) 103. Kc3 {[%emt 0:00:11]} Ke5 {[%emt 0:00:03]} 104. Kd2 {[%emt 0:00:06]} (104. Kd3 $5 Kd5 $8 (104... Kf4 $2 105. Ke2 $18) 105. Kd2 $11) 104... Kd6 {[%emt 0:00:08]} 105. Ke2 {[%emt 0:02:19]} Ke6 $1 {[%emt 0:00:05]} 106. Kf2 {[%emt 0:01:49]} Kf6 {[%emt 0:01:07]} 107. Kf1 {[%emt 0:00:19]} Kf7 {[%emt 0:00:15]} 108. Ke1 {[%emt 0:00:11]} Ke7 {[%emt 0:00:02]} 109. Kd1 {[%emt 0:00:11]} Kd7 {[%emt 0:00:17]} 110. Kc1 {[%emt 0:00:36]} Ke6 {[%emt 0:01:26]} 111. Kc2 {[%emt 0:01:26]} (111. Kd2 $5) 111... Ke5 {[%emt 0:00:04]} 112. Kd2 {[%emt 0:00:14]} (112. Kd3 $5 Kd5 $8 (112... Kf4 $2 113. Ke2 $18) 113. Ke2 $11) 112... Kd6 {[%emt 0:00:03]} 113. Ke2 $1 {[%emt 0:00:23]} Ke6 $1 {[%emt 0:00:04]} 114. Kf2 {[%emt 0:00:11]} Kf6 {[%emt 0:00:10]} 115. Kg1 {[%emt 0:00:49]} Ke6 {[%emt 0:00:08]} 116. Kh2 {[%emt 0:00:32]} Ke7 {[%emt 0:00:25]} 117. Kg3 {[%emt 0:00:56]} Ke6 {[%emt 0:00:08]} 118. Kg2 {[%emt 0:00:19]} Ke7 {[%emt 0:00:09]} 119. Kg1 {[%emt 0:00:28]} Ke6 {[%emt 0:00:05]} 120. Kf2 {[%emt 0:00:48]} Ke5 $2 {[%mdl 8192]} (120... Kf6 $11) 1/2-1/2

[Event "Budapest One Week GM-A 03-2025"]
[Site "Budapest"]
[Date "2025.03.17"]
[Round "1.3"]
[White "Kairbekova, Amina"]
[Black "Uskov, Artem"]
[Result "1/2-1/2"]
[Annotator "TA"]
[ECO "B48"]
[WhiteElo "2336"]
[BlackElo "2461"]
[PlyCount "73"]
[EventDate "2025.03.17"]
[EventType "tourn"]
[EventCountry "HUN"]
[SourceTitle "playchess.com"]
[Source "ChessBase"]
[SourceQuality "1"]
[TimeControl "5400+30"]

{[%evp 14,73,25,27,39,5,29,0,0,0,0,-12,-7,-35,18,-9,21,12,126,30,43,-3,-9,0,0,-7,0,0,0,0,0,0,0,0,0,0,43,20,126,51,69,72,85,69,64,66,59,58,54,59,112,48,62,7,18,0,70,0,10,0,59,0]} 1. e4 {[%emt 0:00:03]} c5 {[%emt 0:00:10]} 2. Nf3 {[%emt 0:00:04]} e6 {[%emt 0:00:10]} 3. d4 {[%emt 0:00:07]} cxd4 {[%emt 0:00:07]} 4. Nxd4 {[%emt 0:00:02]} Nc6 {[%emt 0:00:12]} 5. Nc3 {[%emt 0:00:04]} Qc7 {[%emt 0:00:06]} 6. Be3 {[%emt 0:00:05]} a6 {[%emt 0:00:06]} 7. a3 {[%emt 0:00:03]} b5 {[%emt 0:00:34]} 8. Nxc6 {[%emt 0:00:14]} Qxc6 {[%emt 0:00:07] B48: Sicilian: Taimanov: 5 Nc3 Qc7 6 Be3 a6 without Be2.} 9. h4 {[%emt 0:00:08]} Nf6 {[%emt 0:02:16]} 10. h5 {[%emt 0:00:14]} Nxe4 {[%emt 0:02:15] The position is equal.} 11. Nxe4 {[%emt 0:00:16]} Qxe4 {[%emt 0:00:03]} 12. Be2 {[%emt 0:00:15] White sacrificed a pawn} Rb8 {[%emt 0:03:21][%cal Oc8b7]} 13. Qd2 {[%emt 0:00:18]} h6 {[%emt 0:21:23]} ({Black should try} 13... Qxg2 $15 14. O-O-O Qc6) 14. O-O-O $146 {[%emt 0:00:22][%mdl 1024] White has compensation.} (14. Bf3 Qe5 15. O-O Qc7 16. a4 Be7 17. axb5 Rxb5 18. c4 Rb3 19. c5 Qb8 20. Bd4 {0-1 Brodsky,D (2497)-Wang,J (2431) US Masters op 2023 (4)}) 14... Be7 {[%emt 0:05:35][%cal Ob5b4]} 15. Kb1 {[%emt 0:01:39]} O-O {[%emt 0:42:27]} (15... Bf6 $11) 16. Bf3 {[%emt 0:05:22]} (16. Bd3 $16 Qb7 17. Bxh6) 16... Qc4 $11 {[%emt 0:01:33]} 17. Ba7 {[%emt 0:01:16] [#]} (17. Bf4 $14 Rb6 18. b3) 17... Qc7 $1 {[%emt 0:01:52]} 18. Bxb8 {[%emt 0:08:23]} Qxb8 {[%emt 0:00:01]} 19. Be2 {[%emt 0:02:12]} b4 {[%emt 0:02:48]} 20. axb4 {[%emt 0:05:04]} Bxb4 {[%emt 0:00:09]} 21. Qe3 {[%emt 0:11:14]} Be7 {[%emt 0:01:41]} 22. Rd3 {[%emt 0:08:43][%cal Bd1d3,Bd3b3,Bb3b5][%mdl 32]} a5 $1 {[%emt 0:02:10]} 23. Rb3 $36 {[%emt 0:13:41][%mdl 2048] White has some pressure.} Qa8 {[%emt 0:00:44][%cal Oa5a4]} 24. Rb5 {[%emt 0:01:00]} d5 {[%emt 0:03:59]} 25. Rh3 {[%emt 0:13:06] Strongly threatening Rg3.} a4 {[%emt 0:03:24]} (25... Bd7 $11 {remains equal.} 26. Rb6 a4) 26. Qc3 {[%emt 0:08:53]} (26. Rg3 $16 Bd6 27. Rg4) 26... Bd7 {[%emt 0:03:22] [#]} 27. Rg3 $1 {[%emt 0:01:51][%csl Gg3][%cal Rc3g7]} f6 {[%emt 0:00:01]} 28. Qc7 {[%emt 0:08:09]} Bxb5 {[%emt 0:01:23]} 29. Qxe7 {[%emt 0:00:15][%csl Gg3][%cal Re7g7] White attacks} Rf7 {[%emt 0:00:06]} 30. Qxe6 {[%emt 0:00:05]} Bxe2 {[%emt 0:01:43]} 31. Qxe2 $14 {[%emt 0:00:05][%mdl 4096] Endgame KQR-KQR} Kh8 {[%emt 0:01:07] [#]} (31... Rb7 $14) 32. Qe6 {[%emt 0:08:26]} (32. Rd3 $1 $16) 32... Rb7 {[%emt 0:00:40]} 33. Ka1 {[%emt 0:00:29] White is more active.} (33. Qxd5 $2 Rxb2+ 34. Kxb2 Qxd5 $19) (33. Rc3 $14 Rb8 34. Qd7) 33... Rc7 {[%emt 0:00:37]} 34. Kb1 {[%emt 0:01:08]} (34. Rc3 $11 Rxc3 35. bxc3) 34... Rb7 {[%emt 0:00:01]} 35. Ka1 {[%emt 0:03:19]} (35. Qxd5 $2 Rxb2+ 36. Kxb2 Qxd5 $19) ({White should play} 35. Rc3 $14 Rb8 36. Qd7) 35... Rc7 $11 {[%emt 0:00:01]} 36. Kb1 {[%emt 0:00:44]} (36. Rc3 $11 Rxc3 37. bxc3) 36... Rb7 $14 {[%emt 0:01:13]} 37. Ka1 {[%emt 0:00:37] Weighted Error Value: White=0.24 (precise) /Black=0.22 (precise)   Mistake:       	White=9     	Black=4      Inaccurate:     	White=4     	Black=2      OK:         	White=6     	Black=10     Best:        	White=2     	---        Strong:       	White=1     	Black=2} (37. Qxd5 $2 {perishes.} Rxb2+ 38. Kxb2 Qxd5 $19) (37. Rc3 $14 Rb8 38. Qd7) 1/2-1/2

[Event "Budapest One Week GM-A 03-2025"]
[Site "Budapest"]
[Date "2025.03.17"]
[Round "1.4"]
[White "Mirzoev, Azer"]
[Black "Kienboeck, Benjamin"]
[Result "1-0"]
[Annotator "TA"]
[ECO "E36"]
[WhiteElo "2470"]
[BlackElo "2283"]
[PlyCount "71"]
[EventDate "2025.03.17"]
[EventType "tourn"]
[EventCountry "HUN"]
[SourceTitle "playchess.com"]
[Source "ChessBase"]
[SourceQuality "1"]
[TimeControl "5400+30"]

{[%evp 17,71,29,31,24,33,22,24,22,67,62,54,30,115,111,147,97,94,100,92,89,140,152,143,140,143,173,148,146,175,165,208,190,203,203,242,200,269,279,353,345,379,311,380,371,412,399,372,303,484,545,840,814,898,883,1129,618]} 1. d4 {[%emt 0:00:13]} Nf6 {[%emt 0:00:19]} 2. c4 {[%emt 0:00:07]} e6 {[%emt 0:00:14]} 3. Nc3 {[%emt 0:00:04]} Bb4 {[%emt 0:00:35]} 4. Qc2 {[%emt 0:00:08]} d5 {[%emt 0:00:39]} 5. a3 {[%emt 0:00:16]} Bxc3+ {[%emt 0:01:53]} 6. Qxc3 {[%emt 0:00:06]} O-O {[%emt 0:02:23]} 7. Nf3 {[%emt 0:01:02]} Ne4 {[%emt 0:03:39]} 8. Qc2 {[%emt 0:00:04]} b6 {[%emt 0:13:26]} 9. e3 $1 {[%emt 0:02:03] 9.e3 is better than 9.Bf4.} Bb7 {[%emt 0:02:47]} 10. Bd3 {[%emt 0:05:50] E37: Nimzo-Indian: Classical: 4...d5 5 a3 Bxc3+ 6 Qxc3 Ne4.} Nd7 {[%emt 0:03:37]} 11. O-O {[%emt 0:03:01]} f5 {[%emt 0:07:03]} 12. b4 {[%emt 0:00:18] White has an edge.} c6 {[%emt 0:10:30]} 13. Bb2 {[%emt 0:00:38]} g5 $146 {[%emt 0:15:41][%cal Bg7g5,Bg5g4][%mdl 32]} (13... Qe7 14. Nd2 Ndf6 15. f3 Nxd2 16. Qxd2 Rfc8 17. c5 b5 18. Qc2 Rf8 19. Bc3 a6 {1-0 Avdeeva,V (2155)-Fedorovtsev,I Chigorin Memorial 12th 2004 (8)}) 14. Ne5 {[%emt 0:05:44]} Nd6 {[%emt 0:08:42]} (14... Nxe5 $11 15. dxe5 g4) 15. c5 $16 {[%emt 0:01:41]} Nf7 {[%emt 0:09:06]} 16. f4 {[%emt 0:00:37] White is much more active.} ({White should try} 16. Nxd7 $1 Qxd7 17. a4) 16... Nfxe5 {[%emt 0:01:32]} 17. fxe5 {[%emt 0:01:01][%cal Og2g4]} g4 {[%emt 0:02:46]} 18. a4 {[%emt 0:05:40] Black is weak on the dark squares} a5 {[%emt 0:10:45]} ({Black should try} 18... bxc5 19. dxc5 (19. bxc5 a5 $16) 19... Qg5) 19. cxb6 {[%emt 0:02:49]} Qxb6 {[%emt 0:00:13] [#]} 20. bxa5 {[%emt 0:00:13]} Qxa5 {[%emt 0:00:28] [#]} 21. Ba3 $1 {[%emt 0:03:01]} c5 {[%emt 0:03:23]} 22. Bb5 {[%emt 0:00:24] Dodges Bc6} ({Don't play} 22. dxc5 $6 Bc6 $14) ({But not} 22. Bxc5 Nxc5 23. dxc5 (23. Qxc5 Qd2 $16) 23... Bc6 $14) 22... Qc7 {[%emt 0:01:01]} 23. Bxc5 {[%emt 0:04:02]} Nxc5 {[%emt 0:00:45]} 24. Qxc5 {[%emt 0:00:08]} Qxc5 {[%emt 0:00:17]} 25. dxc5 {[%emt 0:00:08][%cal Bd4c5,Bc5c6][%mdl 32]} Ba6 {[%emt 0:00:38]} 26. Rfc1 {[%emt 0:00:33]} Rf7 {[%emt 0:00:23]} 27. c6 {[%emt 0:02:14]} Rc7 {[%emt 0:00:09]} 28. Rab1 {[%emt 0:04:38]} Bc8 {[%emt 0:00:14]} 29. Kf2 {[%emt 0:00:42]} Kf8 {[%emt 0:00:14]} 30. Ke2 {[%emt 0:02:21]} Ke8 {[%emt 0:01:33]} 31. Kd3 {[%emt 0:02:10]} Kd8 {[%emt 0:00:15]} 32. Kd4 {[%emt 0:00:12] and Kc5 should not be overlooked} Rca7 {[%emt 0:00:43]} (32... Re7 $142 33. h3 g3) 33. Kc5 $18 {[%emt 0:00:25] White is clearly winning.} Kc7 {[%emt 0:00:04]} 34. h3 {[%emt 0:01:47]} g3 {[%emt 0:00:43]} 35. Rb4 {[%emt 0:00:43]} Ba6 {[%emt 0:00:45]} 36. Rh4 {[%emt 0:01:56] Weighted Error Value: White=0.05 (flawless) /Black=0.60  Mistake:       	White=1     	Black=3      Inaccurate:     	---       	Black=4      OK:         	White=13    	Black=7      Best:        	White=2     	---} 1-0